bitfinex-derivatives/quotes_ETHF0:USTF0_20210702
["timestamp","ask_amount","ask_price","bid_price","bid_amount"]
[1625189181405,2.20527,2101.5,2101.4,2.20527]
[1625189181557,4.59947,2101.5,2101.4,2.20527]
[1625189181705,4.59947,2101.5,2101.1,14.772]
[1625189181855,4.59947,2101.5,2101.0,2.20527]
[1625189182714,4.59947,2101.5,2100.2,19.2583]
[1625189183413,2.20527,2100.9,2100.8,2.20527]
[1625189183513,4.91157,2100.9,2100.8,2.20527]
[1625189185015,2.20527,2100.9,2100.8,2.20527]
[1625189185466,4.41054,2100.9,2100.8,2.20527]
[1625189187222,1.60504,2100.9,2100.8,2.20527]
[1625189187323,1.0,2101.7,2100.8,2.20527]
[1625189187421,2.20527,2102.1,2101.5,2.20527]
[1625189187522,2.20527,2102.1,2101.5,5.85267]
[1625189189430,2.20527,2101.6,2101.5,2.20527]
[1625189191106,1.0,2102.7,2101.5,2.20527]
[1625189191206,17.80212085,2107.8,2101.5,5.94807]
[1625189191309,15.5662,2103.4,2101.5,5.94807]
[1625189191406,2.20527,2102.6,2102.5,2.20527]
[1625189193414,4.41054,2102.6,2102.5,2.20527]
[1625189194923,4.41054,2102.6,2101.2,15.8047]
[1625189195024,4.41054,2102.6,2101.2,14.8047]
[1625189195426,2.20527,2102.1,2102.0,2.20527]
[1625189195525,3.2619,2102.8,2102.0,2.20527]
[1625189196377,3.2619,2102.8,2101.8,2.20527]
[1625189197531,2.20527,2102.1,2101.8,2.20527]
[1625189197739,43.8092,2102.0,2101.8,2.20527]
[1625189198741,2.20527,2102.1,2101.8,2.20527]
[1625189200345,37.68127,2102.1,2101.8,2.20527]
[1625189201746,2.20527,2102.1,2101.8,2.20527]
[1625189203902,2.20527,2102.1,2101.6,2.20527]
[1625189204304,46.43487,2102.1,2101.6,2.20527]
[1625189205509,2.20527,2101.7,2101.6,2.20527]
[1625189205609,5.63757,2101.7,2101.6,2.20527]
[1625189206011,5.63757,2101.7,2101.3,2.20527]
[1625189207464,2.20527,2101.4,2101.3,2.20527]
[1625189207915,3.14907,2101.4,2101.3,2.20527]
[1625189208015,2.20527,2101.4,2101.3,2.20527]
[1625189208266,2.20527,2101.4,2100.9,2.20527]
[1625189209472,2.20527,2101.0,2100.9,2.20527]
[1625189210576,5.39927,2101.0,2100.9,2.20527]
[1625189213230,5.39927,2101.0,2100.7,2.20527]
[1625189213580,2.20527,2100.8,2100.7,2.20527]
[1625189215485,2.20527,2100.8,2100.3,2.20527]
[1625189216696,2.20527,2100.8,2100.3,4.16331417]
[1625189217550,2.20527,2100.4,2100.3,4.16331417]
[1625189218807,2.20527,2100.4,2100.3,2.20527]
[1625189219004,2.20527,2100.4,2100.3,4.1631914]
[1625189219604,2.20527,2100.4,2100.3,4.30395648]
[1625189219904,2.20527,2100.4,2100.3,4.1631914]
[1625189221010,1.0,2101.2,2100.3,4.1631914]
[1625189221158,45.3983,2101.4,2100.3,4.1631914]
[1625189221558,2.20527,2101.1,2100.7,2.20527]
[1625189223513,5.11307,2101.1,2100.7,2.20527]
[1625189223664,2.20527,2100.8,2100.7,4.41054]
[1625189223812,2.20527,2100.8,2100.7,2.20527]
[1625189225316,2.20527,2101.1,2100.7,2.20527]
[1625189225516,2.20527,2101.1,2101.0,2.20527]
[1625189228520,2.20527,2101.3,2101.0,5.74877]
[1625189229427,1.0,2102.0,2101.0,5.74877]
[1625189229526,1.83623431,2103.0,2101.0,5.74877]
[1625189229625,1.83623431,2103.0,2101.5,2.20527]
[1625189229626,2.20527,2101.7,2101.5,2.20527]
[1625189231031,2.20527,2101.7,2101.0,2.20527]
[1625189231580,2.20527,2101.7,2101.4,2.20527]
[1625189234137,2.20527,2101.7,2101.0,2.20527]
[1625189234240,4.74087,2101.7,2101.0,2.20527]
[1625189234493,4.74087,2101.7,2100.8,1.95865318]
[1625189234740,4.74087,2101.7,2100.7,1.95860247]
[1625189235141,4.74087,2101.7,2100.4,14.5804]
[1625189235643,2.20527,2100.5,2100.4,16.78567]
[1625189235742,46.52807,2100.5,2100.4,16.78567]
[1625189235941,46.52807,2100.5,2100.4,2.20527]
[1625189237192,5.37527,2100.5,2100.4,2.20527]
[1625189242050,2.20527,2100.5,2100.4,4.64307]
[1625189242254,1.0,2101.3,2100.4,4.64307]
[1625189242362,15.2824,2101.9,2100.4,4.64307]
[1625189242612,42.8007,2102.0,2100.4,4.64307]
[1625189242713,41.8007,2102.0,2100.4,4.64307]
[1625189243665,2.20527,2101.3,2101.2,2.20527]
[1625189243765,2.20527,2101.3,2101.2,5.23627]
[1625189244671,2.20527,2101.3,2101.2,3.031]
[1625189244819,2.20527,2101.3,2100.4,2.79777322]
[1625189244820,2.20527,2101.3,2100.4,1.95868288]
[1625189245676,2.20527,2101.3,2100.8,2.20527]
[1625189247723,2.20527,2100.9,2100.8,2.20527]
[1625189251194,2.20527,2100.9,2100.6,2.20527]
[1625189251746,2.20527,2100.9,2100.7,2.20527]
[1625189254804,2.20527,2101.3,2100.7,2.20527]
[1625189255704,2.20527,2101.3,2101.0,2.20527]
[1625189255866,2.20527,2101.3,2100.7,2.20527]
[1625189257726,2.20527,2101.3,2101.0,2.20527]
[1625189259429,2.20527,2101.3,2100.7,2.20527]
[1625189259532,5.16707,2101.3,2100.7,2.20527]
[1625189259732,4.41054,2100.8,2100.6,1.39910521]
[1625189259882,7.62424,2100.8,2100.6,1.39910521]
[1625189259980,46.2914,2100.7,2100.6,1.39910521]
[1625189260181,46.2914,2100.7,2100.4,2.20527]
[1625189261735,2.20527,2100.5,2100.4,2.20527]
[1625189264441,2.20527,2100.8,2100.4,2.20527]
[1625189264540,2.20527,2100.8,2100.4,5.24387]
[1625189265241,2.20527,2100.8,2100.4,3.0386]
[1625189265491,2.20527,2100.8,2100.4,0.0001]
[1625189265591,2.20527,2100.8,2100.0,0.05]
[1625189265691,5.23777,2100.8,2100.0,0.05]
[1625189265795,4.41054,2100.1,2100.0,0.05]
[1625189265942,7.57044,2100.1,2100.0,0.05]
[1625189271401,7.57044,2100.1,2099.5,2.20527]
[1625189271701,48.5083,2099.9,2099.5,2.20527]
[1625189271804,4.41054,2099.6,2099.5,2.20527]
[1625189272903,4.41054,2099.6,2099.3,3.60412917]
[1625189273003,6.84204,2099.6,2099.3,3.60412917]
[1625189273204,6.84204,2099.6,2099.3,2.20527]
[1625189274410,1.0,2100.7,2099.3,2.20527]
[1625189274517,0.9523,2100.8,2099.3,5.34937]
[1625189274609,1.0,2100.9,2099.3,5.34937]
[1625189274706,4.36017474,2102.1,2099.3,5.34937]
[1625189275014,45.19741372,2101.9,2099.5,1.39828641]
[1625189275159,50.5029,2100.1,2099.5,1.39828641]
[1625189275410,50.5029,2100.1,2099.3,3.60336272]
[1625189275909,2.20527,2099.4,2099.3,3.60336272]
[1625189276124,4.57217,2099.4,2099.3,3.60336272]
[1625189276316,4.57217,2099.4,2099.3,1.39809272]
[1625189276464,4.57217,2099.4,2099.1,1.39820133]
[1625189276565,40.6992,2099.2,2099.1,1.39820133]
[1625189276664,40.6992,2099.2,2098.9,4.19471509]
[1625189276815,40.6992,2099.2,2098.9,1.39831243]
[1625189277228,40.6992,2099.2,2098.7,6.16442978]
[1625189277429,40.6992,2099.2,2098.7,1.39842978]
[1625189277577,40.6992,2099.2,2098.5,1.39775254]
[1625189277877,4.41054,2098.6,2098.5,2.20527]
[1625189278026,8.08744,2098.6,2098.5,2.20527]
[1625189278229,8.08744,2098.6,2098.1,4.766]
[1625189278331,8.08744,2098.6,2097.8,4.4730021]
[1625189278439,5.0,2098.5,2098.0,1.91331421]
[1625189278543,5.0,2098.5,2098.0,1.49831421]
[1625189278643,5.0,2098.5,2098.0,1.19411421]
[1625189278745,5.0,2098.5,2098.0,2.79609713]
[1625189278839,5.0,2098.5,2098.0,1.1046457]
[1625189278939,5.0,2098.5,2098.0,1.0721457]
[1625189279040,5.0,2098.5,2097.8,2.45357197]
[1625189279141,5.0,2098.5,2097.6,2.78975541]
[1625189279341,5.0,2098.5,2096.7,15.3704]
[1625189279440,42.4373,2097.0,2096.7,15.3704]
[1625189279540,45.5536,2097.0,2096.5,4.47512102]
[1625189279892,4.41054,2096.6,2096.5,4.47512102]
[1625189279991,4.41054,2096.6,2096.2,16.57817]
[1625189280091,4.41054,2096.6,2096.2,2.20527]
[1625189280401,3.28263741,2096.6,2096.2,6.97127]
[1625189280497,14.7237,2098.4,2096.2,6.97127]
[1625189280599,1.0,2098.3,2096.3,0.14101014]
[1625189280700,1.0,2098.3,2096.4,39.9366]
[1625189280949,1.0,2098.3,2096.4,44.9366]
[1625189281048,1.0,2098.3,2096.4,39.9366]
[1625189281152,1.0,2098.3,2096.4,43.5033]
[1625189281400,1.0,2098.3,2096.5,0.14100294]
[1625189281602,1.0,2098.3,2096.5,17.32100294]
[1625189281852,2.20527,2097.8,2097.6,2.20527]
[1625189282455,2.20527,2097.8,2097.4,2.20527]
[1625189282556,5.04677,2097.8,2096.1,20.20631499]
[1625189282907,49.224,2096.8,2096.1,14.6211]
[1625189283709,49.224,2096.8,2095.7,9.0]
[1625189283957,4.41054,2095.8,2095.7,9.0]
[1625189284058,6.80474,2095.8,2095.7,9.0]
[1625189286313,4e-05,2095.8,2095.7,9.0]
[1625189286413,49.224,2096.8,2095.7,9.0]
[1625189286513,49.224,2096.8,2095.7,12.6664]
[1625189287015,49.224,2096.8,2095.7,3.6664]
[1625189287838,2.20527,2096.2,2095.8,2.20527]
[1625189287939,5.09727,2096.2,2095.8,2.20527]
[1625189288639,2.20527,2096.4,2095.8,2.20527]
[1625189288741,49.224,2096.8,2095.8,5.36317]
[1625189289893,49.224,2096.8,2096.7,2.20527]
[1625189291946,51.42927,2096.8,2096.7,2.20527]
[1625189292046,2.20527,2096.8,2096.7,5.34567]
[1625189292297,1.0,2098.8,2096.7,5.34567]
[1625189292398,2.6117,2099.3,2096.7,5.34567]
[1625189292497,1.0,2099.1,2096.7,5.34567]
[1625189292649,57.0858,2098.2,2096.7,5.34567]
[1625189293400,57.0858,2098.2,2096.7,2.20527]
[1625189293950,2.20527,2097.4,2097.3,2.20527]
[1625189296019,4.41054,2097.4,2097.3,2.20527]
[1625189297586,7.14024,2097.4,2097.3,2.20527]
[1625189298036,7.14024,2097.4,2095.6,1.0]
[1625189298138,8.14024,2097.4,2095.2,1.0]
[1625189298236,8.14024,2097.4,2094.8,13.766]
[1625189298338,8.14024,2097.4,2094.9,5.0]
[1625189298439,8.14024,2097.4,2094.8,13.766]
[1625189299342,8.14024,2097.4,2095.1,1.0]
[1625189299891,7.14024,2097.4,2095.1,36.8648]
[1625189299994,2.20527,2096.7,2096.6,2.20527]
[1625189303657,2.20527,2097.1,2096.6,2.20527]
[1625189303955,2.20527,2097.1,2097.0,2.20527]
[1625189304509,2.20527,2097.3,2097.0,2.20527]
[1625189305513,2.20527,2097.3,2097.0,5.38177]
[1625189305960,2.20527,2097.3,2097.2,2.20527]
[1625189306112,2.20527,2097.6,2097.2,2.20527]
[1625189307965,2.20527,2097.6,2097.5,2.20527]
[1625189308114,2.20527,2097.6,2097.5,5.75557]
[1625189311824,2.20527,2097.6,2095.2,4.143]
[1625189311921,5.90017,2097.6,2095.2,0.9685]
[1625189312029,2.20527,2097.3,2096.9,2.20527]
[1625189312271,40.6879,2097.2,2096.9,2.20527]
[1625189313071,40.6879,2097.2,2096.7,2.20527]
[1625189313273,2.20527,2097.3,2096.7,2.20527]
[1625189313375,2.20527,2097.3,2096.7,5.58197]
[1625189314076,2.20527,2097.3,2097.2,4.41054]
[1625189314224,2.20527,2097.3,2097.2,7.54334]
[1625189314728,2.20527,2097.6,2097.2,7.54334]
[1625189314826,2.20527,2097.6,2097.2,4e-05]
[1625189315477,47.202,2097.4,2097.2,4e-05]
[1625189315576,47.202,2097.4,2096.6,3.7433]
[1625189316126,2.20527,2096.9,2096.7,2.20527]
[1625189316977,2.20527,2096.9,2096.7,7e-05]
[1625189317330,2.20527,2096.9,2096.0,15.4489]
[1625189318133,2.20527,2096.9,2096.8,2.20527]
[1625189318233,2.20527,2096.9,2096.8,5.68927]
[1625189318438,2.20527,2096.9,2096.8,3.484]
[1625189318946,2.20527,2097.1,2096.8,3.484]
[1625189319052,15.0758,2098.4,2096.8,3.484]
[1625189319649,50.2891,2098.0,2096.8,3.484]
[1625189320048,2.20527,2096.9,2096.8,5.68927]
[1625189321905,2.20527,2097.0,2096.8,5.68927]
[1625189322105,2.20527,2097.2,2096.8,5.68927]
[1625189326119,2.20527,2097.2,2097.1,2.20527]
[1625189326368,2.20527,2097.4,2097.1,2.20527]
[1625189330126,2.20527,2097.4,2097.1,4.41054]
[1625189330225,2.20527,2097.4,2097.1,7.24724]
[1625189330729,1.0,2098.3,2097.1,7.24724]
[1625189330829,40.6992,2099.2,2097.1,7.24724]
[1625189330934,0.9623,2100.3,2097.1,7.24724]
[1625189331027,15.6202,2100.0,2097.1,7.24724]
[1625189331430,15.6202,2100.0,2097.3,41.8544]
[1625189331629,17.19,2099.9,2097.3,41.8544]
[1625189331779,22.19,2099.9,2097.2,15.4925]
[1625189331880,1.0,2099.8,2097.2,15.4925]
[1625189332083,2.20527,2097.7,2097.6,2.20527]
[1625189332334,2.8772,2098.2,2097.6,2.20527]
[1625189333784,54.0741,2098.7,2097.6,2.20527]
[1625189333935,49.0741,2098.7,2097.6,2.20527]
[1625189334134,2.20527,2097.7,2097.6,2.20527]
[1625189336152,2.20527,2097.7,2097.6,4.41054]
[1625189339513,2.20527,2098.0,2097.6,4.41054]
[1625189339612,2.20527,2098.0,2097.6,8.06934]
[1625189339712,1.0,2099.9,2097.6,8.06934]
[1625189340114,2.20527,2098.7,2098.6,2.20527]
[1625189340220,2.20527,2098.7,2098.6,5.63607]
[1625189340768,2.20527,2098.7,2098.6,3.4308]
[1625189341172,48.00227,2098.7,2098.6,3.4308]
[1625189342175,50.20754,2098.7,2098.6,3.4308]
[1625189342680,4.41054,2098.7,2098.6,3.4308]
[1625189345481,4.41054,2098.7,2098.4,2.20527]
[1625189346032,2.20527,2098.7,2098.4,2.20527]
[1625189346234,2.20527,2098.7,2098.6,2.20527]
[1625189346335,2.20527,2098.7,2098.6,4.79267]
[1625189347693,2.20527,2099.1,2098.6,4.79267]
[1625189350202,2.20527,2099.1,2098.9,2.20527]
[1625189358333,2.20527,2099.1,2098.9,5.81787]
[1625189358584,2.20527,2099.3,2098.9,5.81787]
[1625189358684,15.6202,2100.0,2098.9,5.81787]
[1625189359033,1.0,2101.0,2098.9,5.81787]
[1625189359382,6.0,2101.0,2098.9,5.81787]
[1625189359633,17.21,2100.9,2098.9,5.81787]
[1625189359733,6.0,2100.8,2098.9,5.81787]
[1625189360033,17.39,2100.7,2098.9,5.81787]
[1625189360135,5.0,2100.6,2098.9,5.81787]
[1625189360234,8.9268,2100.6,2098.9,2.20527]
[1625189360390,4.41054,2099.0,2098.9,2.20527]
[1625189360484,4.41054,2099.0,2098.7,14.962]
[1625189363842,4.41054,2099.0,2098.6,2.20527]
[1625189364192,6.70504,2099.0,2098.6,2.20527]
[1625189364294,2.20527,2098.7,2098.6,2.20527]
[1625189372074,1.0,2099.5,2098.6,2.20527]
[1625189372175,5.0,2100.6,2098.6,4.70887]
[1625189372325,1.0,2100.5,2098.6,4.70887]
[1625189372425,2.20527,2099.6,2099.4,2.20527]
[1625189372524,2.20527,2099.6,2099.4,4.56297]
[1625189374380,2.20527,2100.1,2100.0,2.20527]
[1625189374479,2.20527,2100.1,2100.0,4.76077]
[1625189374782,1.0,2101.2,2100.0,4.76077]
[1625189374929,3.35424577,2101.8,2100.0,4.76077]
[1625189375035,15.7805,2101.6,2100.0,4.76077]
[1625189375231,3.35703614,2102.2,2100.3,43.765]
[1625189375632,1.0,2102.1,2100.3,43.765]
[1625189376381,3.20527,2102.1,2101.5,2.20527]
[1625189376532,2.20527,2102.1,2101.5,4.55907]
[1625189376734,2.20527,2102.1,2101.5,2.3538]
[1625189378437,4.41054,2101.6,2101.5,0.3082]
[1625189378536,4.41054,2101.6,2101.3,2.20527]
[1625189378888,4.41054,2101.6,2100.9,2.20527]
[1625189379440,4.41054,2101.6,2101.0,50.6019]
[1625189379591,4.41054,2101.6,2101.0,53.3745]
[1625189379893,4.41054,2101.6,2101.0,2.7726]
[1625189380494,2.20527,2101.1,2101.0,2.7726]
[1625189382200,2.20527,2101.6,2101.0,2.7726]
[1625189382504,4.41054,2101.6,2101.0,2.7726]
[1625189384517,2.20527,2101.6,2101.2,2.20527]
[1625189386475,2.20527,2101.3,2101.2,2.20527]
[1625189387878,2.20527,2101.6,2101.2,2.20527]
[1625189390532,2.20527,2101.6,2101.5,2.20527]
[1625189390630,2.20527,2101.6,2101.5,5.89737]
[1625189392586,2.20527,2101.6,2101.5,3.6921]
[1625189393389,2.20527,2101.6,2101.2,2.20527]
[1625189393489,5.95837,2101.6,2101.2,2.20527]
[1625189393890,37.025,2101.3,2101.2,2.20527]
[1625189394543,39.23027,2101.3,2101.2,2.20527]
[1625189394743,2.20527,2101.3,2101.2,2.20527]
[1625189395095,1.0,2102.1,2101.2,2.20527]
[1625189395196,3.33915635,2103.5,2101.2,5.90957]
[1625189395347,1.9485,2103.4,2101.2,5.90957]
[1625189395445,1.0,2103.2,2101.2,5.90957]
[1625189395849,17.14,2103.1,2101.2,5.90957]
[1625189395948,1.0,2103.0,2101.2,5.90957]
[1625189396060,6.0,2103.0,2101.2,5.90957]
[1625189396498,2.20527,2101.7,2101.5,2.20527]
[1625189403380,2.20527,2101.7,2101.2,2.20527]
[1625189404585,2.20527,2101.3,2101.2,2.20527]
[1625189404686,2.20527,2101.3,2101.0,14.7835]
[1625189404842,2.20527,2101.3,2099.2,1.0]
[1625189404939,2.20527,2101.3,2098.5,96.5135]
[1625189405038,1.0,2101.2,2098.7,15.886]
[1625189405138,1.0,2101.2,2098.7,16.886]
[1625189405139,3.7498,2101.2,2098.7,16.886]
[1625189405237,3.7498,2101.2,2098.7,15.886]
[1625189405592,3.7498,2101.2,2098.8,17.29]
[1625189405687,36.2926,2101.0,2098.8,17.29]
[1625189405787,1.0,2100.9,2098.8,17.29]
[1625189406588,2.20527,2100.8,2100.4,2.20527]
[1625189408597,4.41054,2100.8,2100.4,2.20527]
[1625189410601,2.20527,2100.5,2100.4,2.20527]
[1625189413509,2.20527,2100.8,2100.4,2.20527]
[1625189413607,2.20527,2100.8,2100.4,4.68917]
[1625189414259,16.9267,2101.5,2100.4,4.68917]
[1625189414358,15.9267,2101.5,2100.4,4.68917]
[1625189414510,5.0,2101.7,2100.4,4.68917]
[1625189414663,2.20527,2101.1,2100.8,2.20527]
[1625189416627,2.20527,2101.1,2101.0,2.20527]
[1625189416728,2.20527,2101.1,2101.0,4.54617]
[1625189418882,2.20527,2101.3,2101.0,4.54617]
[1625189419584,2.20527,2101.3,2101.2,51.5849]
[1625189420785,2.20527,2101.3,2101.2,53.79017]
[1625189421038,1.0,2102.2,2101.2,53.79017]
[1625189421190,14.9071,2102.5,2101.2,53.79017]
[1625189421286,1.0,2103.7,2101.2,53.79017]
[1625189421788,15.6371,2104.0,2101.2,53.79017]
[1625189421789,1.0,2103.6,2101.2,53.79017]
[1625189421887,1.0,2103.6,2102.3,35.4447]
[1625189421995,15.6371,2104.0,2102.3,37.8066]
[1625189422094,5.0,2103.9,2102.3,37.8066]
[1625189422191,5.0,2103.9,2102.3,2.3619]
[1625189422740,2.20527,2102.6,2102.5,2.20527]
[1625189424346,1.0,2103.4,2102.5,2.20527]
[1625189424446,5.0,2103.4,2102.5,2.20527]
[1625189424798,2.20527,2103.0,2102.9,2.20527]
[1625189424897,2.20527,2103.0,2102.9,5.92117]
[1625189426802,2.20527,2103.0,2102.5,2.20527]
[1625189426899,4.94547,2103.0,2102.5,2.20527]
[1625189427000,4.94547,2103.0,2101.4,1.0]
[1625189427103,4.94547,2103.0,2100.5,1.0]
[1625189427204,5.94547,2103.0,2100.5,1.0]
[1625189428004,5.94547,2103.0,2101.4,45.5028]
[1625189428151,4.94547,2103.0,2101.4,48.8703]
[1625189428250,2.20527,2103.0,2101.4,48.8703]
[1625189428802,2.20527,2102.4,2102.3,2.20527]
[1625189428904,5.0,2103.4,2102.3,41.27677]
[1625189430656,5.0,2103.4,2102.3,5.57547]
[1625189430856,2.20527,2102.4,2102.3,5.57547]
[1625189431308,2.20527,2102.6,2102.3,5.57547]
[1625189432668,2.20527,2102.6,2102.3,2.20527]
[1625189432768,2.20527,2102.4,2102.3,2.20527]
[1625189432871,5.11237,2102.4,2102.3,2.20527]
[1625189432976,5.11237,2102.4,2101.5,15.1369]
[1625189433784,5.11237,2102.4,2101.5,63.4734]
[1625189433886,2.20527,2102.4,2101.5,63.4734]
[1625189434837,2.20527,2102.4,2102.3,2.20527]
[1625189435994,2.20527,2102.4,2101.5,15.1369]
[1625189436091,5.81807,2102.4,2101.5,15.1369]
[1625189436843,5.81807,2102.4,2102.3,2.20527]
[1625189437447,2.20527,2102.4,2102.3,2.20527]
[1625189437949,6.0,2103.4,2102.3,2.20527]
[1625189438050,5.0,2103.4,2102.3,2.20527]
[1625189438551,5.0,2103.4,2102.2,3.3818]
[1625189438907,2.20527,2102.7,2102.2,3.3818]
[1625189439053,2.20527,2102.7,2102.1,2.20527]
[1625189440855,2.20527,2102.2,2102.1,2.20527]
[1625189445632,2.20527,2102.7,2102.1,2.20527]
[1625189446886,2.20527,2102.7,2102.4,2.20527]
[1625189447087,2.20527,2102.7,2102.4,5.32637]
[1625189450951,2.20527,2102.7,2102.4,7.53164]
[1625189453003,4.41054,2102.7,2102.4,7.53164]
[1625189455460,2.20527,2102.7,2102.4,7.53164]
[1625189462073,2.20527,2102.7,2102.4,8.53335233]
[1625189463838,2.20527,2102.7,2102.4,3.20698233]
[1625189463839,5.90167,2102.7,2102.4,3.20698233]
[1625189464242,48.8383,2102.5,2102.4,3.20698233]
[1625189464589,48.8383,2102.5,2102.4,1.00171233]
[1625189464889,5.90167,2102.7,2102.4,1.00171233]
[1625189464991,2.20527,2102.5,2102.4,1.00171233]
[1625189467144,2.20527,2102.7,2102.4,3.20698233]
[1625189467247,2.20527,2102.7,2102.4,6.50998233]
[1625189467548,1.0,2103.4,2102.4,6.50998233]
[1625189467648,15.6371,2104.0,2102.4,6.50998233]
[1625189469104,2.20527,2103.8,2103.7,2.20527]
[1625189470256,1.0,2104.6,2103.7,2.20527]
[1625189470354,1.82028063,2104.9,2103.7,2.20527]
[1625189470555,5.0,2105.1,2103.7,2.20527]
[1625189470655,1.82154119,2105.2,2103.7,2.20527]
[1625189471109,2.20527,2104.3,2104.2,2.20527]
[1625189471610,2.20527,2104.3,2104.2,44.30267]
[1625189474814,2.20527,2104.3,2104.2,2.20527]
[1625189478624,5.54477,2104.3,2104.2,2.20527]
[1625189478874,5.54477,2104.3,2103.7,2.20527]
[1625189479022,53.02847,2104.3,2103.7,2.20527]
[1625189479123,2.20527,2103.9,2103.7,2.20527]
[1625189480828,5.50607,2103.9,2103.7,2.20527]
[1625189481125,2.20527,2103.8,2103.7,2.20527]
[1625189486398,2.20527,2103.9,2103.7,2.20527]
[1625189488054,2.20527,2103.9,2103.8,46.0935]
[1625189489104,2.20527,2103.9,2103.8,48.29877]
[1625189489354,2.20527,2104.3,2103.8,48.29877]
[1625189491115,2.20527,2104.3,2104.2,2.20527]
[1625189495569,2.20527,2104.3,2103.8,2.20527]
[1625189495719,10.07067,2104.3,2102.7,16.2261]
[1625189495819,10.07067,2104.3,2102.7,15.2261]
[1625189496068,46.189,2104.1,2102.7,15.2261]
[1625189497171,2.20527,2103.7,2103.4,2.20527]
[1625189497271,4.72117,2103.7,2103.4,2.20527]
[1625189498029,2.20527,2103.7,2103.4,2.20527]
[1625189498129,2.20527,2104.3,2103.4,2.20527]
[1625189498230,2.20527,2104.3,2103.4,5.42597]
[1625189498836,38.5384,2103.8,2103.4,5.42597]
[1625189498940,41.9364,2103.8,2103.4,2.20527]
[1625189499191,4.41054,2103.5,2103.4,2.20527]
[1625189499648,4.41054,2103.5,2103.2,2.20527]
[1625189500497,9.41054,2103.5,2103.2,2.20527]
[1625189501450,9.41054,2103.5,2102.8,2.20527]
[1625189501904,9.41054,2103.5,2102.4,1.00171233]
[1625189502753,40.2472,2102.5,2102.4,1.00171233]
[1625189502854,43.9329,2102.5,2102.4,1.00171233]
[1625189503256,48.34344,2102.5,2102.4,1.00171233]
[1625189503608,53.34344,2102.5,2102.1,2.20527]
[1625189503707,53.34344,2102.5,2100.6,1.0]
[1625189503809,54.34344,2102.5,2100.8,0.52006275]
[1625189504008,54.34344,2102.5,2100.6,2.7845538]
[1625189504511,54.34344,2102.5,2100.2,15.176]
[1625189504709,17.35,2102.4,2100.2,15.176]
[1625189504811,42.8644,2100.3,2099.8,1.0]
[1625189504912,45.8228,2100.3,2099.7,14.6592]
[1625189505159,45.8228,2100.3,2099.2,2.78620106]
[1625189505313,45.8228,2100.3,2100.2,2.20527]
[1625189505414,45.8228,2100.3,2099.2,2.78620106]
[1625189505518,5.0,2100.2,2099.2,1.06120106]
[1625189505819,5.0,2100.2,2098.4,15.0311]
[1625189505915,1.0,2100.2,2098.4,15.0311]
[1625189506316,45.8228,2100.3,2098.4,15.0311]
[1625189506762,48.4663,2098.9,2098.4,15.0311]
[1625189506863,50.7317,2098.9,2097.8,3.62414778]
[1625189507065,50.7317,2098.9,2097.7,3.62437856]
[1625189507171,50.7317,2098.9,2097.9,0.14086972]
[1625189507268,2.20527,2098.0,2097.9,2.34613972]
[1625189507421,4.15634009,2098.0,2097.9,2.34613972]
[1625189507520,1.95107009,2098.0,2097.9,2.34613972]
[1625189508073,1.95107009,2098.0,2097.9,2.20527]
[1625189508318,1.95107009,2098.0,2097.6,4.766]
[1625189508419,1.95107009,2098.0,2097.4,3.62155053]
[1625189508620,41.4886,2097.6,2097.4,3.62155053]
[1625189508718,41.4886,2097.6,2097.2,3.62195564]
[1625189508918,12.8701,2097.6,2097.2,3.62195564]
[1625189509020,1.95107009,2098.0,2097.0,8.3882753]
[1625189509172,1.95107009,2098.0,2097.3,0.14090753]
[1625189509273,1.95107009,2098.0,2097.6,2.20527]
[1625189509419,2.20527,2098.2,2097.6,6.97127]
[1625189509670,2.20527,2098.2,2097.7,46.015]
[1625189509970,2.20527,2098.2,2097.6,6.97127]
[1625189510676,5.68307,2098.2,2097.6,6.97127]
[1625189511075,5.68307,2098.2,2097.6,4.766]
[1625189511277,4.41054,2097.7,2097.6,4.766]
[1625189511374,6.92954,2097.7,2097.0,6.97127]
[1625189511479,35.4609,2097.1,2097.0,6.97127]
[1625189511576,38.2637,2097.1,2097.0,6.97127]
[1625189511826,2.8028,2097.1,2097.0,2.20527]
[1625189513279,7.21334,2097.1,2097.0,2.20527]
[1625189513580,7.21334,2097.1,2096.5,14.8464]
[1625189513677,7.21334,2097.1,2095.6,4.766]
[1625189514577,35.0079,2097.0,2095.6,4.766]
[1625189515284,2.20527,2096.6,2096.5,2.20527]
[1625189515380,4.92707,2096.6,2096.5,2.20527]
[1625189515832,4.92707,2096.6,2095.6,4.766]
[1625189515932,45.94,2095.8,2094.6,20.1534]
[1625189516039,49.3049,2095.8,2094.6,20.1534]
[1625189517337,2.20527,2095.3,2095.2,2.20527]
[1625189517439,5.43687,2095.3,2095.2,2.20527]
[1625189518891,2.20527,2095.3,2095.2,2.20527]
[1625189518994,5.23647,2095.3,2095.2,2.20527]
[1625189519094,5.23647,2095.3,2093.7,13.766]
[1625189519201,5.23647,2095.3,2093.7,12.333]
[1625189519301,4.41054,2093.8,2093.7,12.333]
[1625189519403,7.86624,2093.8,2093.7,12.333]
[1625189519501,7.86624,2093.8,2093.7,7.567]
[1625189519804,3.4557,2093.8,2093.7,7.567]
[1625189521082,45.7952,2094.1,2093.7,7.0012]